fUSD/lending_fUSD_20250716
["ID","MTS","AMOUNT","RATE_DAILY","PERIOD"]
[372523966,1752670267947,-654.55,0.00022054,2]
[372523967,1752670267956,-151.0,0.00022054,7]
[372523968,1752670267967,-1881.06,0.00022054,2]
[372523969,1752670267976,-460.0,0.00022054,2]
[372523970,1752670267985,-1045.83,0.00022054,2]
[372523971,1752670267994,-460.0,0.00022054,2]
[372523972,1752670268003,-460.0,0.00022054,2]
[372523973,1752670268015,-1370.11,0.00022054,2]
[372523974,1752670268024,-460.0,0.00022054,2]
[372523975,1752670268034,-1398.48,0.00022054,2]
[372523976,1752670268044,-2882.83,0.00022054,2]
[372523977,1752670268053,-1378.86,0.00022054,2]
[372523978,1752670268062,-460.0,0.00022054,2]
[372523979,1752670268072,-460.0,0.00022054,2]
[372523980,1752670268082,-369.49934043,0.00022054,2]
[372523981,1752670268708,-377.24065957,0.00022054,2]
[372523982,1752670268718,-476.42212776,0.00022054,2]
[372523983,1752670268728,-460.0,0.00022054,2]
[372523984,1752670268738,-2844.71,0.00022054,2]
[372523985,1752670268748,-1014.88,0.00022054,2]
[372523986,1752670268758,-460.0,0.00022054,2]
[372523987,1752670268768,-1754.18,0.00022054,2]
[372523988,1752670268778,-460.0,0.00022054,2]
[372523989,1752670268788,-627.24,0.00022054,2]
[372523990,1752670268798,-460.0,0.00022054,2]
[372523991,1752670268807,-9360.72,0.00022054,2]
[372523992,1752670268817,-2844.65,0.00022054,2]
[372523993,1752670268826,-2358.6,0.00022054,2]
[372523994,1752670268836,-1479.0,0.00022054,2]
[372523995,1752670268845,-460.0,0.00022054,2]
[372523996,1752670268854,-460.0,0.00022054,2]
[372523997,1752670268864,-5350.25,0.00022054,2]
[372523998,1752670268874,-460.0,0.00022054,2]
[372523999,1752670268883,-562.34351095,0.00022054,2]
[372524000,1752670268896,-460.0,0.00022054,2]
[372524001,1752670268908,-2600.28,0.00022054,2]
[372524002,1752670268917,-750.72,0.00022054,2]
[372524003,1752670268926,-545.22,0.00022054,2]
[372524004,1752670268935,-460.0,0.00022054,2]
[372524005,1752670268944,-684.2,0.00022054,2]
[372524006,1752670268954,-1381.23,0.00022054,2]
[372524007,1752670268963,-484.36,0.00022054,2]
[372524008,1752670268972,-460.0,0.00022054,2]
[372524009,1752670268983,-130.59513809,0.00022054,2]
[372524010,1752670295465,608.69510129,0.000211,30]
[372524011,1752670451113,172.87,0.00016675,2]
[372524012,1752670670408,5000.0,0.00016,2]
[372524015,1752670959776,159.62,0.00013699,2]
[372524017,1752671136144,158.91,0.00026724,120]
[372524018,1752671136414,158.91,0.00030064,120]
[372524019,1752671214169,-151.20343884,0.00018978,2]
[372524047,1752671431936,-15.46322782,0.00018978,2]
[372524048,1752671431947,-184.18370408,0.00019078,2]
[372524049,1752671431956,-188.44,0.00019178,2]
[372524050,1752671431966,-751.45040528,0.00019902,2]
[372524051,1752671431976,-377.93,0.00019902,2]
[372524052,1752671431987,-164.81376285,0.00019919,2]
[372524053,1752671431998,-311.6225404,0.00019919,2]
[372524054,1752671432061,-508.56369675,0.00019919,2]
[372524055,1752671432071,-300.0,0.00019937,2]
[372524056,1752671432083,-1200.0,0.00019937,2]
[372524057,1752671432094,-751.45040528,0.00019938,2]
[372524058,1752671432105,-751.45040528,0.00019938,2]
[372524059,1752671432115,-551.64573266,0.00019938,2]
[372524060,1752671432131,-296.47035,0.00019938,2]
[372524061,1752671432142,-1189.08542711,0.00019938,2]
[372524062,1752671432212,-4974.997837,0.00019938,2]
[372524063,1752671432333,-263.02063654,0.00019938,2]
[372524064,1752671432345,-1194.40001669,0.00019938,2]
[372524065,1752671432355,-158.24030821,0.00019943,2]
[372524066,1752671432365,-172.49,0.00020017,2]
[372524067,1752671432374,-190.1233181,0.00020032,2]
[372524068,1752671432386,-440.92749675,0.00020032,2]
[372524596,1752671438070,-368.94918515,0.00020032,2]
[372524598,1752671438079,-163.73,0.00020032,2]
[372524600,1752671438089,-158.91,0.00020043,2]
[372524602,1752671438099,-539.06737744,0.00020059,2]
[372524604,1752671438108,-300.0,0.00020158,2]
[372524606,1752671438121,-500.0,0.00020159,2]
[372524608,1752671438130,-900.0,0.00020159,2]
[372524610,1752671438140,-800.0,0.00020159,2]
[372524612,1752671438150,-390.33,0.00020395,2]
[372524614,1752671438160,-28.20457341,0.00020405,2]
[372524616,1752671438172,-362.12542659,0.00020405,2]
[372524618,1752671438182,-390.33,0.00020416,2]
[372524620,1752671438191,-390.33,0.00020427,2]
[372524622,1752671438201,-7500.99,0.00020427,2]
[372524624,1752671438210,-390.33,0.00020438,2]
[372524626,1752671438220,-390.33,0.00020448,2]
[372524628,1752671438229,-390.33,0.00020459,2]
[372524630,1752671438239,-390.33,0.0002047,2]
[372524632,1752671438248,-390.33,0.0002048,2]
[372524634,1752671438259,-277.74,0.00020489,2]
[372524636,1752671438268,-390.33,0.00020491,2]
[372524638,1752671438282,-390.33,0.00020502,2]
[372524640,1752671438292,-390.33,0.00020513,2]
[372524642,1752671438302,-390.33,0.00020523,2]
[372524644,1752671438311,-505.58,0.00020526,2]
[372524646,1752671438321,-390.33,0.00020534,2]
[372524648,1752671438331,-390.33,0.00020545,2]
[372524650,1752671438340,-390.33,0.00020556,2]
[372524652,1752671438349,-390.33,0.00020566,2]
[372524654,1752671438359,-390.33,0.00020577,2]
[372524656,1752671438368,-390.33,0.00020588,2]
[372524658,1752671438378,-390.33,0.00020599,2]
[372524660,1752671438388,-311.0,0.000206,7]
[372524662,1752671438398,-190.0,0.00020813,7]
[372524664,1752671438408,-1000.0,0.00020876,2]
[372524666,1752671438417,-250.0,0.00020876,2]
[372524668,1752671438427,-300.0,0.00020876,2]
[372524670,1752671438436,-250.0,0.00020876,2]
[372524672,1752671438445,-3995.61090714,0.00020924,2]
[372524675,1752671438454,-4031.856,0.00020924,2]
[372524677,1752671438463,-207.4,0.00020924,2]
[372524678,1752671438472,-4181.034672,0.00020979,2]
[372524680,1752671438482,-568.0,0.00021,2]
[372524683,1752671438491,-2439.83660581,0.00021034,2]
[372524684,1752671438500,-1021.13476208,0.0002104,2]
[372524686,1752671438510,-153.24669149,0.00021127,2]
[372524688,1752671438520,-500.0,0.00021127,2]
[372524690,1752671438533,-160.0,0.00021127,2]
[372524692,1752671438543,-500.0,0.00021127,2]
[372524694,1752671438553,-500.0,0.00021127,2]
[372524696,1752671438562,-500.0,0.00021127,2]
[372524698,1752671438572,-600.0,0.00021127,2]
[372524700,1752671438583,-500.0,0.00021127,2]
[372524702,1752671438593,-429.75990523,0.00021127,2]
[372524705,1752671438603,-600.0,0.00021127,2]
[372524706,1752671438613,-500.0,0.00021127,2]
[372524708,1752671438622,-329.77291148,0.00021127,2]
[372524710,1752671438632,-500.0,0.00021127,2]
[372524712,1752671438641,-163.674078,0.00021127,2]
[372524714,1752671438651,-2228.33,0.000212,2]
[372524716,1752671438660,-2228.33,0.000212,2]
[372524718,1752671438670,-551.42,0.000212,2]
[372524720,1752671438679,-551.42,0.000212,2]
[372524722,1752671438688,-900.0,0.00021255,2]
[372524725,1752671438698,-800.0,0.00021255,2]
[372524726,1752671438708,-2228.33,0.000214,2]
[372524729,1752671438717,-551.42,0.000214,2]
[372524730,1752671438727,-163.73,0.00021534,2]
[372524733,1752671438737,-1190.88487,0.00021596,30]
[372524734,1752671438746,-2228.33,0.000217,2]
[372524737,1752671438756,-870.213338,0.00021747,8]
[372524738,1752671438765,-1504.728,0.00021807,2]
[372524740,1752671438776,-1492.659,0.00021807,2]
[372524742,1752671438786,-153.0,0.00021807,2]
[372524744,1752671438796,-1034.494,0.00021807,2]
[372524746,1752671438806,-1465.16473439,0.00021807,2]
[372524748,1752671438816,-607.0,0.00021815,2]
[372524751,1752671438826,-744.982,0.00021817,2]
[372524752,1752671438835,-880.7013,0.00021817,2]
[372524755,1752671438846,-5000.0,0.00021817,2]
[372524757,1752671438856,-1105.7404,0.00021817,2]
[372524758,1752671438866,-273.9373,0.00021817,2]
[372524761,1752671438876,-1681.9481,0.00021817,2]
[372524763,1752671438885,-1021.13476207,0.00021817,2]
[372524764,1752671438895,-164.55269384,0.00021817,2]
[372524766,1752671438905,-513.31422532,0.00021817,2]
[372524769,1752671438921,-153.96755628,0.00021817,2]
[372524770,1752671438931,-159.26277867,0.00021817,2]
[372524772,1752671438940,-2504.74719,0.0002183,2]
[372524774,1752671438950,-454.84936164,0.0002184,2]
[372524776,1752671438961,-513.31422528,0.00021882,2]
[372524779,1752671438970,-1148.65,0.000219,2]
[372524781,1752671438981,-2000.0,0.000219,2]
[372524783,1752671438992,-2625.11684841,0.000219,2]
[372524784,1752671439001,-500.0,0.00021916,2]
[372524787,1752671439011,-500.0,0.00021916,2]
[372524789,1752671439020,-500.0,0.00021916,2]
[372524790,1752671439031,-369.63043518,0.00021916,2]
[372524792,1752671439040,-150.80698829,0.00021916,2]
[372524794,1752671439050,-500.0,0.00021916,2]
[372524796,1752671439059,-500.0,0.00021916,2]
[372524798,1752671439069,-500.0,0.00021916,2]
[372524800,1752671439080,-500.0,0.00021916,2]
[372524803,1752671439090,-500.0,0.00021916,2]
[372524805,1752671439099,-500.0,0.00021916,2]
[372524807,1752671439109,-500.0,0.00021916,2]
[372524809,1752671439118,-500.0,0.00021916,2]
[372524811,1752671439127,-550.0,0.00021916,2]
[372524813,1752671439138,-500.0,0.00021916,2]
[372524814,1752671439147,-500.0,0.00021916,2]
[372524817,1752671439156,-442.74301579,0.00021916,2]
[372524818,1752671439166,-250.5888686,0.00021916,2]
[372524821,1752671439175,-191.85812998,0.00021916,2]
[372524823,1752671439185,-500.0,0.00021916,2]
[372524824,1752671439194,-197.69094642,0.00021916,2]
[372524827,1752671439204,-460.0,0.00021917,2]
[372524828,1752671439213,-460.0,0.00021917,2]
[372524830,1752671439223,-460.0,0.00021917,2]
[372524832,1752671439233,-460.0,0.00021917,2]
[372524834,1752671439243,-460.0,0.00021917,2]
[372524836,1752671439252,-460.0,0.00021917,2]
[372524838,1752671439262,-460.0,0.00021917,2]
[372524840,1752671439271,-460.0,0.00021917,2]
[372524842,1752671439282,-551.45723043,0.00021917,2]
[372524844,1752671439291,-460.0,0.00021917,2]
[372524846,1752671439301,-460.0,0.00021917,2]
[372524848,1752671439310,-1267.56,0.00021917,2]
[372524850,1752671439320,-621.39,0.00021917,2]
[372524852,1752671439329,-460.0,0.00021917,2]
[372524854,1752671439338,-151.42354,0.00021917,2]
[372524856,1752671439347,-460.0,0.00021917,2]
[372524858,1752671439358,-460.0,0.00021917,2]
[372524860,1752671439367,-500.0,0.00021917,2]
[372524862,1752671439377,-500.0,0.00021917,2]
[372524864,1752671439386,-429.41,0.00021917,2]
[372524866,1752671439396,-460.0,0.00021917,2]
[372524868,1752671439407,-460.0,0.00021917,2]
[372524870,1752671439416,-460.0,0.00021917,2]
[372524872,1752671439425,-460.0,0.00021917,2]
[372524875,1752671439435,-460.0,0.00021917,2]
[372524876,1752671439445,-460.0,0.00021917,2]
[372524878,1752671439454,-460.0,0.00021917,2]
[372524880,1752671439464,-460.0,0.00021917,2]
[372524882,1752671439474,-460.0,0.00021917,2]
[372524883,1752671439483,-460.0,0.00021917,2]
[372524884,1752671439500,-460.0,0.00021917,2]
[372524885,1752671439518,-460.0,0.00021917,2]
[372524886,1752671439530,-460.0,0.00021917,2]
[372524887,1752671439539,-460.0,0.00021917,2]
[372524888,1752671439549,-460.0,0.00021917,2]
[372524890,1752671439558,-460.0,0.00021917,2]
[372524892,1752671439568,-460.0,0.00021917,2]
[372524894,1752671439578,-460.0,0.00021917,2]
[372524896,1752671439587,-460.0,0.00021917,2]
[372524898,1752671439596,-460.0,0.00021917,2]
[372524900,1752671439606,-460.0,0.00021917,2]
[372524902,1752671439615,-460.0,0.00021917,2]
[372524904,1752671439624,-460.0,0.00021917,2]
[372524906,1752671439633,-460.0,0.00021917,2]
[372524908,1752671439643,-460.0,0.00021917,2]
[372524909,1752671439652,-735.61,0.00021917,2]
[372524912,1752671439661,-460.0,0.00021917,2]
[372524913,1752671439671,-891.18,0.00021917,2]
[372524916,1752671439680,-460.0,0.00021917,2]
[372524918,1752671439690,-460.0,0.00021917,2]
[372524919,1752671439699,-460.0,0.00021917,2]
[372524922,1752671439710,-460.0,0.00021917,2]
[372524923,1752671439719,-460.0,0.00021917,2]
[372524925,1752671439728,-460.0,0.00021917,2]
[372524927,1752671439738,-460.0,0.00021917,2]
[372524929,1752671439748,-460.0,0.00021917,2]
[372524931,1752671439758,-478.47,0.00021917,2]
[372524933,1752671439767,-460.0,0.00021917,2]
[372524935,1752671439778,-591.4,0.00021917,2]
[372524937,1752671439788,-460.0,0.00021917,2]
[372524939,1752671439797,-460.0,0.00021917,2]
[372524941,1752671439807,-460.0,0.00021917,2]
[372524944,1752671439816,-107.62817306,0.00021917,2]
[372524973,1752671440134,-352.37182694,0.00021917,2]
[372524975,1752671440144,-460.0,0.00021917,2]
[372524977,1752671440154,-192.52810709,0.00021917,2]
[372524979,1752671440165,-267.47189291,0.00021917,2]
[372524981,1752671440177,-460.0,0.00021917,2]
[372524983,1752671440188,-460.0,0.00021917,2]
[372524985,1752671440197,-460.0,0.00021917,2]
[372524987,1752671440207,-460.0,0.00021917,2]
[372524989,1752671440216,-559.47,0.00021917,2]
[372524991,1752671440225,-460.0,0.00021917,2]
[372524993,1752671440235,-460.0,0.00021917,2]
[372524995,1752671440244,-143.66324459,0.00021917,2]
[372525292,1752671443226,-575.594,0.00021807,2]
[372525294,1752671443235,-791.71675541,0.00021917,2]
[372525296,1752671443245,-504.93,0.00021917,2]
[372525298,1752671443254,-219.72429541,0.00021917,2]
[372525302,1752671443278,-240.27570459,0.00021917,2]
[372525303,1752671443288,-460.0,0.00021917,2]
[372525306,1752671443298,-234.91346944,0.00021917,2]
[372525568,1752671446085,-225.08653056,0.00021917,2]
[372525570,1752671446095,-460.0,0.00021917,2]
[372525572,1752671446105,-461.22852838,0.00021917,2]
[372525574,1752671446115,-460.0,0.00021917,2]
[372525576,1752671446125,-460.0,0.00021917,2]
[372525578,1752671446136,-1059.1,0.00021917,2]
[372525580,1752671446146,-460.0,0.00021917,2]
[372525582,1752671446156,-460.0,0.00021917,2]
[372525584,1752671446166,-460.0,0.00021917,2]
[372525586,1752671446176,-234.18494106,0.00021917,2]
[372525589,1752671446197,-242.40505894,0.00021917,2]
[372525591,1752671446207,-460.0,0.00021917,2]
[372525593,1752671446217,-666.91,0.00021917,2]
[372525595,1752671446227,-460.0,0.00021917,2]
[372525597,1752671446237,-248.05186195,0.00021917,2]
[372525599,1752671446247,-460.0,0.00021917,2]
[372525601,1752671446256,-460.0,0.00021917,2]
[372525604,1752671446267,-460.0,0.00021917,2]
[372525606,1752671446276,-460.0,0.00021917,2]
[372525607,1752671446290,-858.23307912,0.00021917,2]
[372525665,1752671446895,-525.56692088,0.00021917,2]
[372525668,1752671446911,-460.0,0.00021917,2]
[372525670,1752671446923,-460.0,0.00021917,2]
[372525672,1752671446933,-460.0,0.00021917,2]
[372525674,1752671446943,-460.0,0.00021917,2]
[372525676,1752671446955,-460.0,0.00021917,2]
[372525678,1752671446965,-460.0,0.00021917,2]
[372525680,1752671446974,-460.0,0.00021917,2]
[372525682,1752671446984,-460.0,0.00021917,2]
[372525684,1752671446995,-460.0,0.00021917,2]
[372525686,1752671447005,-460.0,0.00021917,2]
[372525688,1752671447015,-460.0,0.00021917,2]
[372525690,1752671447025,-429.98693188,0.00021917,2]
[372525692,1752671447039,-460.0,0.00021917,2]
[372525694,1752671447050,-1180.32,0.00021917,2]
[372525696,1752671447060,-612.26,0.00021917,2]
[372525698,1752671447070,-460.0,0.00021917,2]
[372525701,1752671447080,-1940.65,0.00021917,2]
[372525703,1752671447091,-1940.65,0.00021917,2]
[372525705,1752671447101,-1940.65,0.00021917,2]
[372525707,1752671447111,-159.25698178,0.00021917,2]
[372525709,1752671447124,-1781.39301822,0.00021917,2]
[372525711,1752671447134,-1187.11819762,0.00021917,2]
[372526529,1752671635953,1444.0,0.00029041,120]
[372526534,1752671961861,159.62,0.00013699,2]
[372526540,1752672326718,500.56,0.000211,30]
[372526541,1752672342345,5015.80262748,0.0002,30]
[372526545,1752672415149,-171.70234389,0.00018982,2]
[372526546,1752672417777,1444.0,0.00029041,120]
[372526555,1752672518673,717.3109249,0.0001421,7]
[372526580,1752672632112,-125.43305111,0.00018982,2]
[372526581,1752672632122,-291.56165259,0.00019,2]
[372526582,1752672632132,-250.0,0.0001908,2]
[372526583,1752672632141,-174.61919141,0.00019178,2]
[372526584,1752672632150,-173.98,0.00019178,2]
[372526585,1752672632159,-517.0,0.00019318,2]
[372526586,1752672632168,-250.0,0.00019399,2]
[372526587,1752672632177,-163.73,0.00019401,2]
[372526588,1752672632187,-172.49,0.00019516,2]
[372526589,1752672632197,-222.30202778,0.000198,2]
[372526590,1752672632206,-1500.0,0.00019858,2]
[372526591,1752672632216,-1200.0,0.00019899,2]
[372526592,1752672632226,-300.0,0.00019899,2]
[372526593,1752672632235,-589.12129855,0.000199,2]
[372526594,1752672632244,-159.26277865,0.000199,2]
[372526595,1752672632253,-962.57,0.000199,2]
[372526596,1752672632262,-300.0,0.00019972,2]
[372526597,1752672632273,-500.0,0.00019973,2]
[372526598,1752672632286,-500.0,0.00019973,2]
[372526599,1752672632294,-500.0,0.00019973,2]
[372526600,1752672632305,-500.97118134,0.00019973,2]
[372526601,1752672632314,-500.0,0.00019973,2]
[372526602,1752672632324,-500.0,0.00019973,2]
[372526603,1752672632333,-159.65964935,0.00019973,2]
[372526604,1752672632342,-501.28745154,0.00019973,2]
[372526605,1752672632352,-500.0,0.00019973,2]
[372526606,1752672632362,-47.84948613,0.00019973,2]
[372526607,1752672632373,-452.15051387,0.00019973,2]
[372526608,1752672632381,-52.11484014,0.00019999,2]
[372526609,1752672632396,-391.10269843,0.00019999,2]
[372526610,1752672632405,-458.40124413,0.00019999,2]
[372526611,1752672632416,-41.59875587,0.00019999,2]
[372526612,1752672632426,-238.37045969,0.00019999,2]
[372526613,1752672632435,-500.0,0.00019999,2]
[372526614,1752672632445,-317.56005828,0.00019999,2]
[372526615,1752672632455,-500.0,0.00019999,2]
[372526616,1752672632465,-500.0,0.00019999,2]
[372526617,1752672632475,-500.0,0.00019999,2]
[372526618,1752672632484,-500.0,0.00019999,2]
[372526619,1752672632494,-500.0,0.00019999,2]
[372526620,1752672632504,-500.0,0.00019999,2]
[372526621,1752672632515,-500.0,0.00019999,2]
[372526622,1752672632524,-268.63696015,0.00019999,2]
[372526623,1752672632534,-500.0,0.00019999,2]
[372526625,1752672632543,-500.0,0.00019999,2]
[372526626,1752672632554,-500.0,0.00019999,2]
[372526628,1752672632563,-500.0,0.00019999,2]
[372526631,1752672632573,-500.0,0.00019999,2]
[372526634,1752672632583,-500.0,0.00019999,2]
[372526637,1752672632592,-500.0,0.00019999,2]
[372526640,1752672632602,-500.0,0.00019999,2]
[372526643,1752672632611,-500.0,0.00019999,2]
[372526645,1752672632620,-500.0,0.00019999,2]
[372526647,1752672632630,-500.0,0.00019999,2]
[372526649,1752672632639,-500.0,0.00019999,2]
[372526651,1752672632649,-5041.05676601,0.0002,2]
[372526653,1752672632675,-296.91013189,0.0002,2]
[372526654,1752672632693,-7580.56782285,0.0002,2]
[372526655,1752672632704,-6020.0605433,0.0002,2]
[372526656,1752672632715,-19551.27933235,0.0002,2]
[372526657,1752672632726,-1190.0754,0.0002,2]
[372526658,1752672632737,-1209.12975589,0.0002,2]
[372526659,1752672632751,-3931.0,0.0002,2]
[372526663,1752672638034,-396.29659484,0.0002,2]
[372526664,1752672638044,-1237.83079746,0.0002,2]
[372526665,1752672638053,-1538.8726077,0.0002,2]
[372526666,1752672638125,-3075.99809778,0.0002,2]
[372526667,1752672638137,-2699.48258898,0.0002,2]
[372526668,1752672638149,-953.27572824,0.0002,2]
[372526669,1752672638160,-490.0,0.0002,2]
[372526670,1752672638171,-3718.10733516,0.0002,2]
[372526671,1752672638262,-12992.95124731,0.0002,2]
[372526866,1752672640490,-3189.00000001,0.0002,2]
[372526869,1752672640510,-482780.66461139,0.0002,2]
[372526877,1752672640570,-279.37480087,0.0002,2]
[372526879,1752672640582,-1672.09999992,0.0002,2]
[372527145,1752672643149,-3161.92047616,0.0002,2]
[372527147,1752672643162,-683.92786888,0.0002,2]
[372527156,1752672643239,-5998.74240004,0.0002,2]
[372527160,1752672643269,-417.96904801,0.0002,2]
[372527162,1752672643281,-1453.50098755,0.0002,2]
[372527182,1752672643479,-609.1,0.0002,2]
[372527359,1752672646995,-2083.58742696,0.0002,2]
[372527360,1752672647007,-280.45,0.0002,2]
[372527361,1752672647019,-1000.87607069,0.0002,2]
[372527362,1752672647034,-28026.11608429,0.0002,2]
[372527363,1752672647045,-10082.26597,0.0002,2]
[372527364,1752672647060,-1712.65621891,0.0002,2]
[372527365,1752672647079,-387.8921435,0.0002,2]
[372527366,1752672647090,-1513.69395779,0.0002,2]
[372527389,1752672691664,2029.4,0.00030137,120]
[372527392,1752672922785,1014.49275992,0.00030136,120]
[372527395,1752673125002,159.62,0.00013699,2]
[372527734,1752673200431,1444.0,0.00029041,120]
[372527736,1752673285440,334.0,0.000211,30]
[372527745,1752673612713,1035.47659331,0.0003,120]
[372527754,1752673832577,-529.96835616,0.00019194,2]
[372527755,1752673832592,-163.73,0.00019294,2]
[372527756,1752673832602,-960.44,0.00019294,2]
[372527757,1752673832612,-190.0,0.00019338,7]
[372527758,1752673832624,-11910.79,0.0001935,2]
[372527759,1752673832633,-200.0,0.00019401,2]
[372527760,1752673832643,-749.31,0.0001941,2]
[372527761,1752673832653,-158.91,0.00019599,2]
[372527762,1752673832663,-161.61,0.00019607,2]
[372527763,1752673832672,-529.96835612,0.00019828,2]
[372527764,1752673832682,-1200.0,0.00019898,2]
[372527765,1752673832691,-848.0,0.00019899,2]
[372527766,1752673832703,-159.26277865,0.000199,2]
[372527767,1752673832714,-1000.0,0.00019975,2]
[372527768,1752673832724,-350.0,0.0001998,2]
[372527769,1752673832733,-157.905,0.00019999,2]
[372527770,1752673832743,-2583.398,0.00019999,2]
[372527771,1752673832753,-5327.52858937,0.00019999,2]
[372527772,1752673832763,-392.5306794,0.00019999,2]
[372527774,1752673832772,-60142.68511545,0.0002,2]
[372527779,1752673832808,-6796.85879752,0.0002,2]
[372527780,1752673832820,-317.38596528,0.0002,2]
[372527781,1752673832831,-342.40820457,0.0002,2]
[372527783,1752673832854,-1186.1676,0.0002,2]
[372527784,1752673832866,-845.19219316,0.0002,2]
[372527785,1752673832880,-5910.41394142,0.0002,2]
[372527786,1752673832891,-1998.43888721,0.0002,2]
[372527791,1752673838211,-655.00000018,0.0002,2]
[372527792,1752673838368,-2578.4773968,0.0002,2]
[372527793,1752673838529,-465277.63572559,0.0002,2]
[372527794,1752673838539,-287.07037721,0.0002,2]
[372527795,1752673838549,-2008.45518312,0.0002,2]
[372527796,1752673838558,-231.71,0.0002,2]
[372527797,1752673838572,-174.73570031,0.0002,2]
[372527798,1752673838582,-2422.75554,0.0002,2]
[372527799,1752673838593,-500.0,0.0002,2]
[372527800,1752673838603,-500.0,0.0002,2]
[372527801,1752673838612,-501.18197753,0.0002,2]
[372527802,1752673838623,-500.0,0.0002,2]
[372527803,1752673838636,-500.0,0.0002,2]
[372527804,1752673838646,-209.37843792,0.0002,2]
[372527805,1752673838655,-152.09289653,0.0002,2]
[372527807,1752673838665,-500.0,0.0002,2]
[372527809,1752673838675,-7868.5,0.0002,2]
[372527811,1752673838684,-8139.67,0.00020145,2]
[372527813,1752673838694,-5967.66,0.00020145,2]
[372527815,1752673838704,-9999.99,0.00020145,2]
[372527817,1752673838713,-1144.43,0.00020145,2]
[372527819,1752673838723,-999.99,0.00020145,2]
[372527821,1752673838732,-150.99,0.00020145,2]
[372527823,1752673838742,-500.0,0.00020159,2]
[372527825,1752673838751,-700.0,0.00020159,2]
[372527827,1752673838761,-700.0,0.00020159,2]
[372527829,1752673838770,-342.61,0.0002019,2]
[372527831,1752673838780,-250.0,0.00020192,2]
[372527833,1752673838789,-500.0,0.00020333,2]
[372527835,1752673838798,-502.94313068,0.00020333,2]
[372527837,1752673838808,-645.52834518,0.00020333,2]
[372527871,1752673839136,-626.08881258,0.00020333,2]
[372527873,1752673839147,-500.0,0.00020333,2]
[372527875,1752673839157,-500.0,0.00020333,2]
[372527877,1752673839167,-501.11946264,0.00020333,2]
[372527879,1752673839176,-500.0,0.00020333,2]
[372527881,1752673839186,-714.16,0.00020456,2]
[372527883,1752673839196,-529.96835612,0.00020462,2]
[372527885,1752673839205,-983.46050411,0.00020548,2]
[372527887,1752673839215,-222.2,0.00020633,2]
[372527889,1752673839224,-1124.33364454,0.000208,2]
[372527890,1752673839234,-502.39398706,0.00020881,2]
[372527891,1752673839243,-1037.65223452,0.00020881,2]
[372527892,1752673839253,-26273.46718432,0.00020899,2]
[372527893,1752673839263,-3700.94494199,0.00020899,2]
[372527894,1752673839273,-23184.457487,0.000209,2]
[372527895,1752673839283,-180.81430395,0.000209,2]
[372527896,1752673839293,-207.4,0.00020924,2]
[372527897,1752673839303,-151.0,0.00020924,2]
[372527898,1752673839313,-160.0,0.00020924,2]
[372527899,1752673839323,-600.0,0.00020959,2]
[372527901,1752673839332,-90664.28250181,0.00021,2]
[372527903,1752673839342,-21665.1174994,0.00021,2]
[372527905,1752673839351,-545.0,0.00021,2]
[372527907,1752673839361,-529.96835612,0.00021097,2]
[372527909,1752673839371,-1000.0,0.000211,2]
[372527911,1752673839384,-151.0,0.000211,2]